[Event "Live Chess"]
[Site "Chess.com"]
[Date "2023.05.21"]
[Round "-"]
[White "ranvir123"]
[Black "Vitalii18a"]
[Result "1-0"]
[WhiteElo "962"]
[BlackElo "1115"]
[TimeControl "300"]
[EndTime "3:10:15 PDT"]
[Termination "ranvir123 won by checkmate"]

1. e4 {[%clk 0:04:57.9]} 1... e5 {[%clk 0:04:58.3]} 2. Nf3 {[%clk 0:04:57.5]}
2... d6 {[%clk 0:04:56.9]} 3. d4 {[%clk 0:04:55.6]} 3... exd4 {[%clk 0:04:55.5]}
4. Nxd4 {[%clk 0:04:55.2]} 4... Be7 {[%clk 0:04:55.4]} 5. Nc3 {[%clk 0:04:52.9]}
5... Nf6 {[%clk 0:04:54.4]} 6. Bg5 {[%clk 0:04:52.2]} 6... O-O {[%clk
0:04:52.6]} 7. Bc4 {[%clk 0:04:49.9]} 7... h6 {[%clk 0:04:49.5]} 8. Bh4 {[%clk
0:04:48.7]} 8... g5 {[%clk 0:04:47.4]} 9. Bg3 {[%clk 0:04:47.8]} 9... Be6 {[%clk
0:04:43]} 10. Bxe6 {[%clk 0:04:39]} 10... fxe6 {[%clk 0:04:41.6]} 11. Nxe6
{[%clk 0:04:38.6]} 11... Qe8 {[%clk 0:04:38.5]} 12. Nxc7 {[%clk 0:04:32.7]}
12... Qd7 {[%clk 0:04:28.2]} 13. Nxa8 {[%clk 0:04:28.7]} 13... Nc6 {[%clk
0:04:24.1]} 14. e5 {[%clk 0:04:25.9]} 14... Nxe5 {[%clk 0:04:17.9]} 15. Bxe5
{[%clk 0:04:24]} 15... Rxa8 {[%clk 0:04:10.3]} 16. Bxf6 {[%clk 0:04:20.1]} 16...
Bxf6 {[%clk 0:04:08.1]} 17. O-O {[%clk 0:04:16.3]} 17... Rc8 {[%clk 0:04:00.5]}
18. Nd5 {[%clk 0:04:14.1]} 18... Be5 {[%clk 0:03:56.5]} 19. f4 {[%clk
0:04:08.5]} 19... gxf4 {[%clk 0:03:51]} 20. Rxf4 {[%clk 0:04:05.6]} 20... Bxf4
{[%clk 0:03:45.6]} 21. Nf6+ {[%clk 0:04:03]} 21... Kf7 {[%clk 0:03:32.8]} 22.
Nxd7 {[%clk 0:04:01.6]} 22... Ke7 {[%clk 0:03:29.2]} 23. Qd4 {[%clk 0:03:53.2]}
23... Bg5 {[%clk 0:03:18.7]} 24. Qg7+ {[%clk 0:03:45.9]} 24... Kd8 {[%clk
0:03:10.4]} 25. Rf1 {[%clk 0:03:19.8]} 25... Rxc2 {[%clk 0:03:01.9]} 26. Rf8+
{[%clk 0:03:13.3]} 26... Kc7 {[%clk 0:02:57.4]} 27. Nc5+ {[%clk 0:03:02.6]}
27... Kc6 {[%clk 0:02:35.4]} 28. Qd7+ {[%clk 0:02:56]} 28... Kxc5 {[%clk
0:02:27.6]} 29. Rc8+ {[%clk 0:02:54.5]} 29... Kd5 {[%clk 0:02:11.5]} 30. Rxc2
{[%clk 0:02:54.4]} 30... b6 {[%clk 0:02:09.7]} 31. Qxa7 {[%clk 0:02:51.4]} 31...
b5 {[%clk 0:02:08.2]} 32. Qf2 {[%clk 0:02:39.9]} 32... Ke5 {[%clk 0:02:00.9]}
33. Re2+ {[%clk 0:02:36.9]} 33... Kd5 {[%clk 0:01:58.4]} 34. Qf5+ {[%clk
0:02:35.3]} 34... Kc6 {[%clk 0:01:55]} 35. g3 {[%clk 0:02:30.2]} 35... d5 {[%clk
0:01:53.2]} 36. h4 {[%clk 0:02:27.3]} 36... Bc1 {[%clk 0:01:48.3]} 37. Rc2+
{[%clk 0:02:25.8]} 37... Kd6 {[%clk 0:01:44.6]} 38. Rxc1 {[%clk 0:02:25.7]}
38... h5 {[%clk 0:01:43.3]} 39. Qg5 {[%clk 0:02:24.9]} 39... b4 {[%clk
0:01:41.6]} 40. Qxh5 {[%clk 0:02:24.3]} 40... b3 {[%clk 0:01:39.5]} 41. Qd1
{[%clk 0:02:24.2]} 41... bxa2 {[%clk 0:01:37]} 42. Ra1 {[%clk 0:02:23]} 42... d4
{[%clk 0:01:35.3]} 43. Rxa2 {[%clk 0:02:22.9]} 43... Ke5 {[%clk 0:01:32]} 44.
Qd3 {[%clk 0:02:22.8]} 44... Kd5 {[%clk 0:01:29.9]} 45. b3 {[%clk 0:02:22.7]}
45... Kc5 {[%clk 0:01:27.7]} 46. b4+ {[%clk 0:02:22.6]} 46... Kxb4 {[%clk
0:01:26.3]} 47. Qxd4+ {[%clk 0:02:21]} 47... Kb3 {[%clk 0:01:25.7]} 48. Re2
{[%clk 0:02:19.6]} 48... Ka3 {[%clk 0:01:23.8]} 49. h5 {[%clk 0:02:18.9]} 49...
Kb3 {[%clk 0:01:22.5]} 50. h6 {[%clk 0:02:18.8]} 50... Ka3 {[%clk 0:01:21.8]}
51. h7 {[%clk 0:02:18.7]} 51... Kb3 {[%clk 0:01:21.3]} 52. h8=Q {[%clk
0:02:17.4]} 52... Ka3 {[%clk 0:01:21.2]} 53. Qa8+ {[%clk 0:02:16.5]} 53... Kb3
{[%clk 0:01:21.1]} 54. Re3+ {[%clk 0:02:14.4]} 54... Kc2 {[%clk 0:01:19.6]} 55.
Qd3+ {[%clk 0:02:12.2]} 55... Kb2 {[%clk 0:01:16.3]} 56. Qb7+ {[%clk 0:02:11.6]}
56... Kc1 {[%clk 0:01:14.9]} 57. Qc6+ {[%clk 0:02:10.3]} 57... Kb2 {[%clk
0:01:13.3]} 58. Qdb5+ {[%clk 0:02:09.7]} 58... Ka2 {[%clk 0:01:11.1]} 59. Qca6#
{[%clk 0:02:06.8]} 1-0

[Event "Live Chess"]
[Site "Chess.com"]
[Date "2023.05.21"]
[Round "-"]
[White "RoaringKnights"]
[Black "Ian-Morley"]
[Result "1-0"]
[WhiteElo "1049"]
[BlackElo "1060"]
[TimeControl "300"]
[EndTime "3:10:15 PDT"]
[Termination "RoaringKnights won by resignation"]

1. e4 {[%clk 0:04:58.3]} 1... e5 {[%clk 0:04:59]} 2. Nf3 {[%clk 0:04:56.9]} 2...
Nc6 {[%clk 0:04:57.9]} 3. Bc4 {[%clk 0:04:55.8]} 3... Nf6 {[%clk 0:04:56.7]} 4.
d3 {[%clk 0:04:55]} 4... d5 {[%clk 0:04:55.9]} 5. exd5 {[%clk 0:04:52]} 5... Na5
{[%clk 0:04:55.3]} 6. Bb3 {[%clk 0:04:50.7]} 6... Nxb3 {[%clk 0:04:54.6]} 7.
axb3 {[%clk 0:04:50]} 7... Nxd5 {[%clk 0:04:54.1]} 8. Nxe5 {[%clk 0:04:48.1]}
8... Qe7 {[%clk 0:04:52.8]} 9. Qe2 {[%clk 0:04:47.3]} 9... f6 {[%clk 0:04:49.5]}
10. Nf3 {[%clk 0:04:44.1]} 10... Qxe2+ {[%clk 0:04:48.4]} 11. Kxe2 {[%clk
0:04:43.5]} 11... Bg4 {[%clk 0:04:47.9]} 12. Re1 {[%clk 0:04:42.1]} 12... Bxf3+
{[%clk 0:04:47.3]} 13. Kxf3+ {[%clk 0:04:41.6]} 13... Kd7 {[%clk 0:04:46.5]} 14.
c4 {[%clk 0:04:39.2]} 14... Nb4 {[%clk 0:04:44.8]} 15. Na3 {[%clk 0:04:35.3]}
15... Nc6 {[%clk 0:04:42]} 16. Bf4 {[%clk 0:04:33.9]} 16... Bxa3 {[%clk
0:04:40.6]} 17. bxa3 {[%clk 0:04:31.8]} 17... Rae8 {[%clk 0:04:38.1]} 18. Rxe8
{[%clk 0:04:29.6]} 18... Rxe8 {[%clk 0:04:37.5]} 19. Ra2 {[%clk 0:04:28.4]}
19... Ne5+ {[%clk 0:04:36.8]} 20. Bxe5 {[%clk 0:04:27.3]} 20... fxe5 {[%clk
0:04:36.2]} 21. Ke4 {[%clk 0:04:26.6]} 21... c6 {[%clk 0:04:34.2]} 22. Re2
{[%clk 0:04:22.9]} 22... Kd6 {[%clk 0:04:32]} 23. Kf3 {[%clk 0:04:19.8]} 23...
g6 {[%clk 0:04:29.8]} 24. d4 {[%clk 0:04:18.8]} 24... e4+ {[%clk 0:04:24.8]} 25.
Rxe4 {[%clk 0:04:17]} 25... Rf8+ {[%clk 0:04:23.6]} 26. Ke3 {[%clk 0:04:14.1]}
26... h6 {[%clk 0:04:21.4]} 27. Rg4 {[%clk 0:04:11.1]} 27... g5 {[%clk
0:04:19.8]} 28. h4 {[%clk 0:04:09.2]} 28... gxh4 {[%clk 0:04:18.4]} 29. Rxh4
{[%clk 0:04:08.4]} 29... Rf6 {[%clk 0:04:17.6]} 30. c5+ {[%clk 0:03:57.1]} 30...
Kd5 {[%clk 0:04:16.2]} 31. Rh5+ {[%clk 0:03:56.4]} 31... Ke6 {[%clk 0:04:15.2]}
32. Re5+ {[%clk 0:03:49.3]} 32... Kf7 {[%clk 0:04:12.9]} 33. d5 {[%clk
0:03:45.7]} 33... cxd5 {[%clk 0:04:11.7]} 34. Rxd5 {[%clk 0:03:44.1]} 34... Re6+
{[%clk 0:04:08.6]} 35. Kd2 {[%clk 0:03:36.5]} 35... Kg6 {[%clk 0:04:05.3]} 36.
f4 {[%clk 0:03:34.6]} 36... h5 {[%clk 0:04:02.4]} 37. f5+ {[%clk 0:03:33.7]}
37... Kf6 {[%clk 0:03:59.8]} 38. fxe6 {[%clk 0:03:32.2]} 38... Kxe6 {[%clk
0:03:59.2]} 39. Rxh5 {[%clk 0:03:31.7]} 1-0

[Event "Live Chess"]
[Site "Chess.com"]
[Date "2023.05.21"]
[Round "-"]
[White "LiamClery2020"]
[Black "Tiltador"]
[Result "1-0"]
[WhiteElo "1993"]
[BlackElo "845"]
[TimeControl "300"]
[EndTime "3:10:16 PDT"]
[Termination "LiamClery2020 won by checkmate"]

1. e4 {[%clk 0:04:58.7]} 1... e5 {[%clk 0:04:58.3]} 2. Nc3 {[%clk 0:04:56.7]}
2... d6 {[%clk 0:04:56.8]} 3. d4 {[%clk 0:04:53.4]} 3... f6 {[%clk 0:04:55.3]}
4. dxe5 {[%clk 0:04:50.9]} 4... fxe5 {[%clk 0:04:54.2]} 5. Nf3 {[%clk 0:04:49]}
5... Nc6 {[%clk 0:04:50.8]} 6. Bb5 {[%clk 0:04:47.6]} 6... Bd7 {[%clk
0:04:49.2]} 7. O-O {[%clk 0:04:46.1]} 7... Nf6 {[%clk 0:04:47.7]} 8. Re1 {[%clk
0:04:41.2]} 8... g6 {[%clk 0:04:46.3]} 9. Bg5 {[%clk 0:04:37.7]} 9... Bg7 {[%clk
0:04:44.7]} 10. Bc4 {[%clk 0:04:35.3]} 10... a6 {[%clk 0:04:36.4]} 11. Nd5
{[%clk 0:04:28.6]} 11... b5 {[%clk 0:04:31]} 12. Bb3 {[%clk 0:04:23.7]} 12...
O-O {[%clk 0:04:16.8]} 13. Nxf6+ {[%clk 0:04:21.4]} 13... Kh8 {[%clk 0:04:10.8]}
14. Nxh7 {[%clk 0:04:18.2]} 14... Qc8 {[%clk 0:03:52.6]} 15. Nxf8 {[%clk
0:04:16.4]} 15... Bxf8 {[%clk 0:03:49.6]} 16. Qd5 {[%clk 0:04:13.7]} 16... Be6
{[%clk 0:03:29.7]} 17. Qxe6 {[%clk 0:04:09.8]} 17... Qxe6 {[%clk 0:03:28.2]} 18.
Bxe6 {[%clk 0:04:09.7]} 18... Nd4 {[%clk 0:03:22.5]} 19. Nxd4 {[%clk 0:04:06.7]}
19... exd4 {[%clk 0:03:20.7]} 20. e5 {[%clk 0:04:04.1]} 20... Bg7 {[%clk
0:03:17.1]} 21. exd6 {[%clk 0:03:58.4]} 21... cxd6 {[%clk 0:03:16]} 22. Rad1
{[%clk 0:03:56.2]} 22... Be5 {[%clk 0:03:14.3]} 23. f4 {[%clk 0:03:54.3]} 23...
Bg7 {[%clk 0:03:08.6]} 24. Rd3 {[%clk 0:03:50.2]} 24... b4 {[%clk 0:02:56.1]}
25. Rh3+ {[%clk 0:03:47.2]} 25... Bh6 {[%clk 0:02:50.3]} 26. Rxh6+ {[%clk
0:03:43.6]} 26... Kg7 {[%clk 0:02:49.1]} 27. Bd5 {[%clk 0:03:42]} 27... Rb8
{[%clk 0:02:43.1]} 28. Re7+ {[%clk 0:03:39.9]} 28... Kf8 {[%clk 0:02:40]} 29.
Rh8# {[%clk 0:03:38.6]} 1-0

[Event "Live Chess"]
[Site "Chess.com"]
[Date "2023.05.21"]
[Round "-"]
[White "RockTroll"]
[Black "McSlash1"]
[Result "0-1"]
[WhiteElo "2215"]
[BlackElo "2009"]
[TimeControl "300"]
[EndTime "3:10:18 PDT"]
[Termination "McSlash1 won by resignation"]

1. Nf3 {[%clk 0:04:58.4]} 1... c5 {[%clk 0:04:59.5]} 2. g3 {[%clk 0:04:57.8]}
2... d6 {[%clk 0:04:57.7]} 3. Bg2 {[%clk 0:04:57.3]} 3... g6 {[%clk 0:04:55.9]}
4. O-O {[%clk 0:04:56.7]} 4... Bg7 {[%clk 0:04:55.5]} 5. d3 {[%clk 0:04:56.1]}
5... Nc6 {[%clk 0:04:52.7]} 6. e4 {[%clk 0:04:54.9]} 6... Nf6 {[%clk 0:04:51.4]}
7. c3 {[%clk 0:04:53.6]} 7... O-O {[%clk 0:04:51]} 8. Re1 {[%clk 0:04:52.2]}
8... Nd7 {[%clk 0:04:50.6]} 9. a4 {[%clk 0:04:49.1]} 9... Nde5 {[%clk
0:04:49.9]} 10. Nxe5 {[%clk 0:04:45.2]} 10... Nxe5 {[%clk 0:04:49.8]} 11. h3
{[%clk 0:04:42.7]} 11... Nc6 {[%clk 0:04:46.6]} 12. Na3 {[%clk 0:04:41.8]} 12...
f5 {[%clk 0:04:44.8]} 13. exf5 {[%clk 0:04:36.7]} 13... Bxf5 {[%clk 0:04:44.7]}
14. Nc4 {[%clk 0:04:26.3]} 14... e5 {[%clk 0:04:42.8]} 15. a5 {[%clk 0:04:19.9]}
15... Qf6 {[%clk 0:04:40.6]} 16. a6 {[%clk 0:04:18.6]} 16... Bc8 {[%clk
0:04:31.7]} 17. axb7 {[%clk 0:04:16.1]} 17... Bxb7 {[%clk 0:04:31.6]} 18. Be3
{[%clk 0:04:10.8]} 18... Rab8 {[%clk 0:04:22.7]} 19. Na5 {[%clk 0:03:58.5]}
19... Nxa5 {[%clk 0:04:20.3]} 20. Rxa5 {[%clk 0:03:58.4]} 20... Bxg2 {[%clk
0:04:18.9]} 21. Kxg2 {[%clk 0:03:57]} 21... Rxb2 {[%clk 0:04:18.3]} 22. Re2
{[%clk 0:03:48.7]} 22... Qf3+ {[%clk 0:04:12.8]} 23. Kh2 {[%clk 0:03:45.7]}
23... Rxe2 {[%clk 0:04:11.1]} 24. Qg1 {[%clk 0:03:42.6]} 24... Qxe3 {[%clk
0:04:07.1]} 0-1

[Event "Live Chess"]
[Site "Chess.com"]
[Date "2023.05.21"]
[Round "-"]
[White "f4nomore"]
[Black "MMmaaxxxx"]
[Result "0-1"]
[WhiteElo "1406"]
[BlackElo "2032"]
[TimeControl "300"]
[EndTime "3:10:21 PDT"]
[Termination "MMmaaxxxx won on time"]

1. e3 {[%clk 0:04:38.5]} 1... d5 {[%clk 0:04:53.7]} 2. f4 {[%clk 0:04:36.8]}
2... Nc6 {[%clk 0:04:50.9]} 3. Nf3 {[%clk 0:04:35.3]} 3... Bg4 {[%clk
0:04:49.7]} 4. Be2 {[%clk 0:04:33.9]} 4... Bxf3 {[%clk 0:04:45.2]} 5. Bxf3
{[%clk 0:04:30.5]} 5... e5 {[%clk 0:04:45.1]} 6. fxe5 {[%clk 0:04:28.5]} 6...
Nxe5 {[%clk 0:04:45]} 7. O-O {[%clk 0:04:26.9]} 7... Nf6 {[%clk 0:04:44]} 8. Be2
{[%clk 0:04:24.8]} 8... Bd6 {[%clk 0:04:42.2]} 9. d4 {[%clk 0:04:23.5]} 9... Ng6
{[%clk 0:04:39.2]} 10. Nc3 {[%clk 0:04:21.4]} 10... O-O {[%clk 0:04:38.1]} 11.
a3 {[%clk 0:04:20.6]} 11... Re8 {[%clk 0:04:36.7]} 12. Bf3 {[%clk 0:04:13.6]}
12... c6 {[%clk 0:04:34.4]} 13. g3 {[%clk 0:04:09.3]} 13... Qc7 {[%clk 0:04:32]}
14. Qd2 {[%clk 0:04:04]} 14... a6 {[%clk 0:04:14.1]} 15. Qg2 {[%clk 0:04:02.2]}
15... Re7 {[%clk 0:04:09]} 16. Bd2 {[%clk 0:04:00.8]} 16... Rae8 {[%clk
0:04:07.4]} 17. Rae1 {[%clk 0:03:56.8]} 17... Ne4 {[%clk 0:03:56.4]} 18. Nxe4
{[%clk 0:03:50.9]} 18... dxe4 {[%clk 0:03:56.3]} 19. Bg4 {[%clk 0:03:45.5]}
19... Nf8 {[%clk 0:03:49.6]} 20. Bh5 {[%clk 0:03:37.6]} 20... g6 {[%clk
0:03:48.4]} 21. Bg4 {[%clk 0:03:36.1]} 21... f5 {[%clk 0:03:47.6]} 22. Bh3
{[%clk 0:03:34.2]} 22... Ne6 {[%clk 0:03:45.7]} 23. c3 {[%clk 0:03:32.3]} 23...
Ng5 {[%clk 0:03:44]} 24. Bxf5 {[%clk 0:03:19.4]} 24... gxf5 {[%clk 0:03:42.6]}
25. Rxf5 {[%clk 0:03:17.6]} 25... Nf3+ {[%clk 0:03:42.3]} 26. Kh1 {[%clk
0:03:09.9]} 26... Nxd2 {[%clk 0:03:40.5]} 27. Qxd2 {[%clk 0:03:04.1]} 27... c5
{[%clk 0:03:38.9]} 28. Qe2 {[%clk 0:02:57.1]} 28... cxd4 {[%clk 0:03:37.1]} 29.
cxd4 {[%clk 0:02:54.7]} 29... b5 {[%clk 0:03:36.1]} 30. Qg4+ {[%clk 0:02:50.9]}
30... Rg7 {[%clk 0:03:34.6]} 31. Qh4 {[%clk 0:02:39.3]} 31... Qe7 {[%clk
0:03:32.9]} 32. Qh3 {[%clk 0:02:32.5]} 32... Qe6 {[%clk 0:03:29.2]} 33. Ref1
{[%clk 0:02:30.7]} 33... Rf7 {[%clk 0:03:25.1]} 34. Qg4+ {[%clk 0:02:06.7]}
34... Rg7 {[%clk 0:03:19.6]} 35. Qh5 {[%clk 0:01:58.4]} 35... Qg6 {[%clk
0:03:15.6]} 36. Qxg6 {[%clk 0:01:49.9]} 36... Rxg6 {[%clk 0:03:14.1]} 37. Rd5
{[%clk 0:01:48.4]} 37... Rf8 {[%clk 0:03:08.7]} 38. Rc1 {[%clk 0:01:41]} 38...
Rgf6 {[%clk 0:03:05.5]} 39. Rc6 {[%clk 0:01:31.4]} 39... Rf1+ {[%clk 0:02:57.9]}
40. Kg2 {[%clk 0:01:30.1]} 40... R8f2+ {[%clk 0:02:57.3]} 41. Kh3 {[%clk
0:01:28.9]} 41... Bf8 {[%clk 0:02:46.5]} 42. Rg5+ {[%clk 0:01:18]} 42... Kf7
{[%clk 0:02:43.3]} 43. Rc7+ {[%clk 0:01:13.7]} 43... Kf6 {[%clk 0:02:33.8]} 44.
Rh5 {[%clk 0:01:08.5]} 44... Rh1 {[%clk 0:02:24.8]} 45. Rc6+ {[%clk 0:00:56.7]}
45... Kf7 {[%clk 0:02:22.6]} 46. Rxh7+ {[%clk 0:00:51.8]} 46... Kg8 {[%clk
0:02:21.6]} 47. Rh4 {[%clk 0:00:45.1]} 47... Rfxh2+ {[%clk 0:02:20]} 48. Kg4
{[%clk 0:00:42.8]} 48... Rxh4+ {[%clk 0:02:17.8]} 49. gxh4 {[%clk 0:00:40.5]}
49... Rg1+ {[%clk 0:02:16.2]} 50. Kh5 {[%clk 0:00:38.6]} 50... Rg3 {[%clk
0:02:05.6]} 51. Rxa6 {[%clk 0:00:33.2]} 51... Rxe3 {[%clk 0:02:04.3]} 52. Rb6
{[%clk 0:00:31.1]} 52... Rb3 {[%clk 0:02:03]} 53. d5 {[%clk 0:00:25.9]} 53...
Rxb2 {[%clk 0:01:53.2]} 54. Rg6+ {[%clk 0:00:21.5]} 54... Kf7 {[%clk 0:01:51.8]}
55. d6 {[%clk 0:00:17.4]} 55... Rh2 {[%clk 0:01:49.4]} 56. d7 {[%clk 0:00:12.2]}
56... Be7 {[%clk 0:01:47.4]} 57. Rg4 {[%clk 0:00:01.6]} 57... e3 {[%clk
0:01:42.2]} 0-1

[Event "Live Chess"]
[Site "Chess.com"]
[Date "2023.05.21"]
[Round "-"]
[White "manthanit"]
[Black "Berdgross"]
[Result "1-0"]
[WhiteElo "1082"]
[BlackElo "662"]
[TimeControl "300"]
[EndTime "3:10:42 PDT"]
[Termination "manthanit won by checkmate"]

1. e4 {[%clk 0:04:55.6]} 1... e5 {[%clk 0:04:56.4]} 2. Nf3 {[%clk 0:04:54.2]}
2... d6 {[%clk 0:04:51.5]} 3. h3 {[%clk 0:04:52.2]} 3... Nf6 {[%clk 0:04:48]} 4.
Nc3 {[%clk 0:04:49.6]} 4... Nc6 {[%clk 0:04:47.6]} 5. d4 {[%clk 0:04:48.4]} 5...
exd4 {[%clk 0:04:44.8]} 6. Nxd4 {[%clk 0:04:48]} 6... Bd7 {[%clk 0:04:41.4]} 7.
Bd3 {[%clk 0:04:36.1]} 7... Nxd4 {[%clk 0:04:38.4]} 8. O-O {[%clk 0:04:32.2]}
8... d5 {[%clk 0:04:32.6]} 9. Re1 {[%clk 0:04:28.9]} 9... dxe4 {[%clk
0:04:30.7]} 10. Nxe4 {[%clk 0:04:27.7]} 10... Nxe4 {[%clk 0:04:29.1]} 11. Bxe4
{[%clk 0:04:27]} 11... Ne6 {[%clk 0:04:25.1]} 12. Bxb7 {[%clk 0:04:25.6]} 12...
Rb8 {[%clk 0:04:23.9]} 13. Bd5 {[%clk 0:04:19.1]} 13... c6 {[%clk 0:04:19.5]}
14. Bc4 {[%clk 0:04:17]} 14... Bb4 {[%clk 0:04:13.3]} 15. c3 {[%clk 0:04:15.5]}
15... Bc5 {[%clk 0:04:09.5]} 16. Bd3 {[%clk 0:04:04.2]} 16... O-O {[%clk
0:04:07.4]} 17. Qh5 {[%clk 0:04:02.4]} 17... g6 {[%clk 0:04:02.3]} 18. Qh6
{[%clk 0:03:56.5]} 18... Qf6 {[%clk 0:03:54.2]} 19. Bg5 {[%clk 0:03:50.3]} 19...
Qxf2+ {[%clk 0:03:49.1]} 20. Kh1 {[%clk 0:03:43.8]} 20... Nxg5 {[%clk
0:03:39.3]} 21. Qxg5 {[%clk 0:03:39.7]} 21... f6 {[%clk 0:03:00.9]} 22. Qh6
{[%clk 0:03:28.5]} 22... Qg3 {[%clk 0:02:45.9]} 23. Rf1 {[%clk 0:03:19.2]} 23...
f5 {[%clk 0:02:37.6]} 24. Rf3 {[%clk 0:03:16.8]} 24... Qd6 {[%clk 0:02:28.1]}
25. b4 {[%clk 0:03:05.3]} 25... Bb6 {[%clk 0:02:22.4]} 26. Re1 {[%clk
0:02:58.3]} 26... Rfe8 {[%clk 0:02:19.7]} 27. Bc4+ {[%clk 0:02:56.2]} 27... Kh8
{[%clk 0:02:15.2]} 28. Rxe8+ {[%clk 0:02:33.7]} 28... Rxe8 {[%clk 0:02:11.7]}
29. Rf4 {[%clk 0:01:57.4]} 29... Re1+ {[%clk 0:02:07.8]} 30. Rf1 {[%clk
0:01:56.1]} 30... Rxf1+ {[%clk 0:02:03.3]} 31. Bxf1 {[%clk 0:01:55.1]} 31... Qd1
{[%clk 0:01:59]} 32. Qf8# {[%clk 0:01:48.5]} 1-0

[Event "Live Chess"]
[Site "Chess.com"]
[Date "2023.05.21"]
[Round "-"]
[White "Greenbecker"]
[Black "sanjesh_ananda"]
[Result "1-0"]
[WhiteElo "1648"]
[BlackElo "1320"]
[TimeControl "300"]
[EndTime "3:10:43 PDT"]
[Termination "Greenbecker won by resignation"]

1. e4 {[%clk 0:04:58.4]} 1... e5 {[%clk 0:04:58.7]} 2. Nf3 {[%clk 0:04:57.4]}
2... Nc6 {[%clk 0:04:57.4]} 3. Bb5 {[%clk 0:04:56.4]} 3... Nf6 {[%clk
0:04:53.3]} 4. O-O {[%clk 0:04:54.8]} 4... a6 {[%clk 0:04:46.5]} 5. Ba4 {[%clk
0:04:53.3]} 5... b5 {[%clk 0:04:45.4]} 6. Bb3 {[%clk 0:04:52.3]} 6... Bc5 {[%clk
0:04:39.6]} 7. d3 {[%clk 0:04:50.6]} 7... O-O {[%clk 0:04:36.1]} 8. Bg5 {[%clk
0:04:49.6]} 8... h6 {[%clk 0:04:34.2]} 9. Bh4 {[%clk 0:04:48.2]} 9... Be7 {[%clk
0:04:29.1]} 10. Nc3 {[%clk 0:04:47]} 10... d6 {[%clk 0:04:24.7]} 11. d4 {[%clk
0:04:42.4]} 11... exd4 {[%clk 0:04:17.9]} 12. Nxd4 {[%clk 0:04:41.2]} 12... Ne5
{[%clk 0:03:17]} 13. f4 {[%clk 0:04:35.5]} 13... Neg4 {[%clk 0:03:09.3]} 14. Re1
{[%clk 0:04:27.3]} 14... Ne8 {[%clk 0:02:41.7]} 15. Nc6 {[%clk 0:04:20.5]} 15...
Qd7 {[%clk 0:02:02.5]} 16. Nxe7+ {[%clk 0:04:18.1]} 16... Kh8 {[%clk 0:01:59.3]}
17. Nxc8 {[%clk 0:04:15.6]} 17... Rxc8 {[%clk 0:01:57.1]} 18. e5 {[%clk
0:04:09.9]} 18... Qf5 {[%clk 0:01:48.4]} 19. Bg3 {[%clk 0:04:01.6]} 19... dxe5
{[%clk 0:01:33.8]} 20. fxe5 {[%clk 0:03:56.3]} 20... h5 {[%clk 0:01:22]} 21. Rf1
{[%clk 0:03:54.6]} 21... Qg6 {[%clk 0:01:11.9]} 22. Qf3 {[%clk 0:03:38.4]} 22...
f6 {[%clk 0:00:53.4]} 23. Qf5 {[%clk 0:03:31.3]} 23... Qh6 {[%clk 0:00:47]} 24.
Qxc8 {[%clk 0:03:26.4]} 1-0

[Event "Live Chess"]
[Site "Chess.com"]
[Date "2023.05.21"]
[Round "-"]
[White "Tushinskiy"]
[Black "lateforthesky"]
[Result "1-0"]
[WhiteElo "2182"]
[BlackElo "2112"]
[TimeControl "300"]
[EndTime "3:10:48 PDT"]
[Termination "Tushinskiy won by resignation"]

1. d4 {[%clk 0:04:58.9]} 1... Nf6 {[%clk 0:04:56.4]} 2. c3 {[%clk 0:04:58.8]}
2... g6 {[%clk 0:04:53.6]} 3. Nf3 {[%clk 0:04:58.7]} 3... Bg7 {[%clk 0:04:52.4]}
4. Bf4 {[%clk 0:04:58.6]} 4... d6 {[%clk 0:04:51.3]} 5. Bg3 {[%clk 0:04:58.5]}
5... O-O {[%clk 0:04:50]} 6. Nbd2 {[%clk 0:04:54.3]} 6... c5 {[%clk 0:04:47.7]}
7. e3 {[%clk 0:04:49.3]} 7... Nc6 {[%clk 0:04:46]} 8. Bd3 {[%clk 0:04:42.6]}
8... cxd4 {[%clk 0:04:24.3]} 9. exd4 {[%clk 0:04:40.7]} 9... Nh5 {[%clk
0:04:23.2]} 10. O-O {[%clk 0:04:36.7]} 10... Nxg3 {[%clk 0:04:21.2]} 11. hxg3
{[%clk 0:04:35.2]} 11... e5 {[%clk 0:04:18.7]} 12. d5 {[%clk 0:04:33.1]} 12...
Ne7 {[%clk 0:04:16.8]} 13. c4 {[%clk 0:04:31.2]} 13... f5 {[%clk 0:04:12.7]} 14.
Bc2 {[%clk 0:04:29]} 14... b6 {[%clk 0:04:09.1]} 15. Rb1 {[%clk 0:04:27]} 15...
g5 {[%clk 0:03:59.1]} 16. Nxg5 {[%clk 0:04:23.5]} 16... Nxd5 {[%clk 0:03:49.3]}
17. Nxh7 {[%clk 0:04:19.6]} 17... Kxh7 {[%clk 0:03:46.6]} 18. cxd5 {[%clk
0:04:16.5]} 18... Qg5 {[%clk 0:03:24.6]} 19. g4 {[%clk 0:04:13.6]} 19... Kg8
{[%clk 0:03:21.5]} 20. gxf5 {[%clk 0:04:08.9]} 20... Bxf5 {[%clk 0:03:19.8]} 21.
Bxf5 {[%clk 0:04:07.3]} 21... Rxf5 {[%clk 0:03:18.5]} 22. g3 {[%clk 0:03:57]}
22... Raf8 {[%clk 0:03:14.9]} 23. Ne4 {[%clk 0:03:55.4]} 23... Qh6 {[%clk
0:03:05.4]} 24. Qg4 {[%clk 0:03:48.5]} 24... Kh8 {[%clk 0:02:49.1]} 25. Kg2
{[%clk 0:03:46.1]} 25... Rf4 {[%clk 0:02:31.8]} 26. gxf4 {[%clk 0:03:34.3]}
26... Rxf4 {[%clk 0:02:27.7]} 27. Qc8+ {[%clk 0:03:32.5]} 1-0